bitfinex/quotes_ETHUSD_20260228
["timestamp","ask_amount","ask_price","bid_price","bid_amount"]
[1772284272928,0.002,1871.5,1871.3,1.50676944]
[1772284273633,0.002,1871.7,1871.4,0.21879186]
[1772284274011,0.002,1871.7,1871.3,1.55475916]
[1772284274012,1.79331759,1871.7,1871.3,1.55475916]
[1772284274837,1.79331759,1871.7,1870.9,7.47645756]
[1772284274838,1.79131759,1871.3,1870.6,0.21884064]
[1772284275427,1.79131759,1871.3,1870.8,0.21884064]
[1772284278136,1.79131759,1871.3,1870.9,1.33625527]
[1772284280938,1.79131759,1871.3,1870.8,5.56386175]
[1772284280939,1.79131759,1871.3,1870.8,5.34502111]
[1772284281315,1.79131759,1871.3,1870.8,6.08835392]
[1772284281514,1.79131759,1871.3,1870.8,5.34502111]
[1772284281734,1.79131759,1871.3,1870.9,0.001]
[1772284282038,1.79131759,1871.1,1870.9,0.001]
[1772284286212,0.002,1871.2,1870.9,0.001]
[1772284286413,0.002,1871.3,1870.9,1.90124253]
[1772284287711,0.22247425,1871.3,1870.9,1.90124253]
[1772284288446,0.22247425,1871.3,1871.0,1.33618385]
[1772284296357,0.22247425,1871.3,1871.1,0.001]
[1772284296585,0.002,1871.2,1871.1,0.001]
[1772284296855,2.78733817,1871.4,1871.2,1.90277176]
[1772284297049,1.76753345,1871.5,1871.2,1.90277176]
[1772284297351,0.25749836,1871.7,1871.2,1.90277176]
[1772284297650,0.25749836,1871.7,1871.3,3.2387414]
[1772284298750,0.25749836,1871.7,1871.2,5.34387858]
[1772284298751,0.48630889,1871.6,1871.2,3.2388057]
[1772284299124,0.48630889,1871.6,1871.2,1.90277176]
[1772284299320,0.48630889,1871.6,1871.2,3.2388111]
[1772284301051,0.48630889,1871.6,1871.3,2.08502447]
[1772284301854,0.48630889,1871.6,1871.4,1.33589825]
[1772284307759,0.002,1871.7,1871.4,3.32737543]
[1772284308529,0.002,1871.7,1871.5,1.99147718]
[1772284309743,0.002,1871.6,1871.5,1.99147718]
[1772284310459,0.002,1871.6,1871.5,3.32730405]
[1772284310664,0.002,1871.7,1871.5,3.32730405]
[1772284316979,0.002,1871.7,1871.5,1.99147718]
[1772284317478,0.002,1871.7,1871.5,3.32730381]
[1772284319084,0.002,1871.7,1871.5,1.99147718]
[1772284319388,0.002,1871.7,1871.5,3.32730267]
[1772284319589,0.002,1871.7,1871.5,1.99147718]
[1772284321590,0.52018971,1871.7,1871.2,1.99147718]
[1772284321812,0.52018971,1871.7,1871.5,0.001]
[1772284322182,0.002,1871.6,1871.5,0.001]
[1772284324711,0.002,1871.6,1871.5,1.99247718]
[1772284324900,0.002,1871.8,1871.5,1.99247718]
[1772284327414,0.002,1871.8,1871.6,1.99147718]
[1772284329112,0.52810805,1872.1,1871.7,1.99147718]
[1772284329313,0.52810805,1872.3,1871.7,1.99147718]
[1772284329613,0.52810805,1872.3,1871.9,1.99147718]
[1772284331913,0.52810805,1872.3,1872.0,3.40048592]
[1772284332912,2.121,1872.5,1872.0,1.33547008]
[1772284333219,2.68824679,1872.5,1872.1,2.06501584]
[1772284333405,0.56724679,1872.4,1872.1,2.06501584]
[1772284333722,2.68828248,1872.5,1872.1,2.06501584]
[1772284333890,1.33507754,1872.6,1872.1,2.06501584]
[1772284334224,0.56728248,1872.3,1872.0,2.06501584]
[1772284336194,0.56728248,1872.3,1872.0,3.40047388]
[1772284336596,0.002,1872.4,1872.1,2.06501584]
[1772284338822,0.002,1872.4,1872.1,3.40037802]
[1772284339019,0.002,1872.4,1872.2,2.06501584]
[1772284340921,0.56612514,1872.3,1871.9,2.06501584]
[1772284344517,0.56612514,1872.3,1872.0,1.33547008]
[1772284344717,0.56612514,1872.3,1871.9,3.40050819]
[1772284346638,0.56612514,1872.3,1872.0,2.06501584]
[1772284348323,0.56612514,1872.3,1872.0,2.06601584]
[1772284348526,0.56812514,1872.3,1872.0,2.06601584]
[1772284348825,0.56812514,1872.3,1872.0,3.40145907]
[1772284353353,0.56812514,1872.3,1872.1,2.03829333]
[1772284353545,0.002,1872.3,1872.1,2.03829333]
[1772284355936,0.002,1872.3,1872.1,3.37369004]
[1772284356261,0.002,1872.3,1872.2,2.06501584]
[1772284356457,0.002,1872.3,1872.1,1.33539671]
[1772284356958,0.002,1872.3,1872.1,3.40041255]
[1772284358063,0.002,1872.3,1872.1,2.06501584]
[1772284359065,0.56572575,1872.4,1872.1,2.06501584]
[1772284360862,0.56233552,1872.3,1872.0,1.33641311]
[1772284361268,0.56233552,1872.3,1872.0,3.46440873]
[1772284362278,0.56233552,1872.3,1872.1,0.001]
[1772284362660,0.56433552,1872.3,1872.1,0.001]
[1772284363253,0.56433552,1872.3,1872.1,2.17260431]
[1772284363567,0.002,1872.3,1872.1,2.17260431]
[1772284368587,0.002,1872.3,1872.1,3.50799021]
[1772284369078,0.002,1872.3,1872.1,2.17260431]
[1772284370193,0.54909541,1872.3,1872.1,0.001]
[1772284376800,0.002,1872.3,1872.1,2.17260431]
[1772284377196,0.002,1872.3,1872.2,0.001]
[1772284378803,0.002,1872.3,1872.2,2.17260431]
[1772284382493,0.002,1872.3,1872.2,0.001]
[1772284383308,0.002,1872.3,1872.2,2.17260431]
[1772284391742,8.5823552,1872.7,1872.2,2.17260431]
[1772284391743,2.9969975,1872.7,1872.3,2.15086979]
[1772284391951,2.9969975,1872.7,1872.4,2.15086979]
[1772284391952,0.002,1872.6,1872.4,2.15086979]
[1772284394342,0.002,1872.6,1872.4,3.48604614]
[1772284395736,0.002,1872.6,1872.5,2.15086979]
[1772284396812,0.002,1872.6,1872.4,1.33517635]
[1772284397129,1.71199605,1872.9,1872.6,2.15086979]
[1772284397130,0.37716214,1872.9,1872.6,2.15086979]
[1772284397319,0.86515465,1872.9,1872.6,2.15086979]
[1772284398308,0.48538422,1872.8,1872.6,2.15086979]
[1772284398621,0.48538422,1872.8,1872.4,3.48604614]
[1772284401420,0.48538422,1872.8,1872.5,2.15086979]
[1772284402540,0.48538422,1872.8,1872.5,3.48596579]
[1772284404143,0.48538422,1872.8,1872.5,3.48696579]
[1772284404401,0.002,1872.7,1872.5,3.48696579]
[1772284404642,0.002,1872.7,1872.5,3.48697707]
[1772284409745,0.002,1872.7,1872.6,2.15086979]
[1772284409917,0.82973637,1872.9,1872.6,2.15086979]
[1772284410643,0.82973637,1872.9,1872.6,3.48590838]
[1772284413567,0.37716214,1872.9,1872.7,2.15086979]
[1772284416356,0.81284542,1872.9,1872.7,2.15086979]
[1772284416657,0.37716214,1872.9,1872.7,2.15086979]
[1772284418161,0.002,1872.8,1872.7,3.48584068]
[1772284418366,0.37716214,1872.9,1872.8,2.15086979]
[1772284418367,0.002,1872.9,1872.8,2.15086979]
[1772284418573,4.50574407,1873.1,1872.8,2.15086979]
[1772284418753,4.50774407,1873.1,1872.8,2.15086979]
[1772284420356,4.50774407,1873.1,1872.8,3.4857183]
[1772284426665,2.115,1873.3,1872.8,3.4857183]
[1772284427485,0.11406771,1873.2,1872.9,2.11944684]
[1772284428169,0.11406771,1873.2,1872.9,3.45426852]
[1772284429869,2.22306384,1873.3,1873.0,2.11944684]
[1772284430707,0.74231585,1873.4,1873.1,2.11944684]
[1772284430898,3.55553463,1873.4,1873.1,2.11944684]
[1772284431094,0.10506162,1873.3,1873.0,3.45420313]
[1772284431874,0.002,1873.2,1873.0,3.45420313]
[1772284432406,0.74231585,1873.0,1872.8,0.001]
[1772284432592,0.002,1873.2,1872.9,2.17046631]
[1772284433178,0.002,1873.2,1872.8,0.001]
[1772284433179,0.74431585,1873.2,1872.8,0.001]
[1772284433384,0.06265638,1873.1,1872.8,0.001]
[1772284434818,0.06265638,1873.1,1872.8,2.17146631]
[1772284436022,0.06265638,1873.1,1872.8,0.001]
[1772284439928,1.39737251,1873.1,1872.8,0.001]
[1772284440328,0.06265638,1873.1,1872.8,0.001]
[1772284441496,1.39734583,1873.1,1872.8,0.001]
[1772284441702,0.03741846,1873.1,1872.8,2.17146631]
[1772284442298,0.03741846,1873.0,1872.8,0.001]
[1772284443209,0.03423361,1873.1,1872.8,2.17146631]
[1772284443532,2.15023361,1873.2,1872.9,2.17046631]
[1772284446836,2.116,1873.2,1872.9,2.17146631]
[1772284447133,0.002,1873.0,1872.9,2.17146631]
[1772284447502,0.002,1873.0,1872.9,3.50629465]
[1772284449237,0.002,1873.0,1872.9,2.17146631]
[1772284451940,0.002,1873.0,1872.9,3.50629465]
[1772284453446,0.002,1873.0,1872.9,2.17146631]
[1772284456664,2.114,1873.2,1873.0,2.16946631]
[1772284456837,3.83452002,1873.4,1872.9,3.50528436]
[1772284457375,1.33452002,1873.4,1872.9,3.50528436]
[1772284458174,5.33773088,1873.5,1872.9,3.50528436]
[1772284459547,1.33440085,1873.5,1872.9,3.50528436]
[1772284459780,1.33440085,1873.5,1873.0,2.16946631]
[1772284459945,5.95132701,1873.7,1873.0,2.16946631]
[1772284460140,5.95132701,1873.7,1873.1,3.50415212]
[1772284460952,0.002,1873.3,1873.1,3.50415212]
[1772284461362,0.002,1873.3,1872.9,1.33577931]
[1772284463277,0.002,1873.3,1872.9,3.50524562]
[1772284463484,0.002,1873.3,1873.0,2.16946631]
[1772284464607,0.002,1873.3,1873.0,3.50418578]
[1772284465191,0.002,1873.3,1873.1,2.16946631]
[1772284466886,0.002,1873.3,1873.2,3.50408087]
[1772284467395,1.73803752,1873.8,1873.3,2.16846631]
[1772284469009,1.73803752,1873.8,1873.3,3.502992]
[1772284469395,2.85067473,1873.8,1873.3,1.33452569]
[1772284469911,0.40384331,1873.8,1873.4,2.16846631]
[1772284470117,1.73803081,1873.8,1873.4,2.16846631]
[1772284471010,0.40384331,1873.8,1873.4,2.16846631]
[1772284471204,0.40384331,1873.8,1873.4,3.50293387]
[1772284471719,0.40384331,1873.8,1873.4,2.16846631]
[1772284471922,0.40384331,1873.8,1873.4,3.50293407]
[1772284472640,1.73803182,1873.8,1873.4,2.16846631]
[1772284474236,1.73803182,1873.8,1873.4,3.50293667]
[1772284474419,0.40384331,1873.8,1873.4,3.50293667]
[1772284474941,0.002,1873.7,1873.4,3.50293667]
[1772284478540,0.002,1873.7,1873.4,2.16846631]
[1772284479342,0.002,1873.7,1873.5,2.16846631]
[1772284479562,2.5,1874.0,1873.5,2.16846631]
[1772284480062,3.83404847,1874.0,1873.5,2.16846631]
[1772284480436,4.94668568,1874.0,1873.5,2.16846631]
[1772284481354,1.33404847,1874.0,1873.6,2.16846631]
[1772284481521,2.30635644,1874.1,1873.6,2.16846631]
[1772284481729,2.30635644,1874.1,1873.5,1.33435183]
[1772284481927,2.30635644,1874.1,1873.5,3.50281814]
[1772284483772,2.30635644,1874.1,1873.6,2.16846631]
[1772284484265,0.97233584,1874.1,1873.6,2.16846631]
[1772284485368,2.30631091,1874.1,1873.6,2.16846631]
[1772284485872,2.30631091,1874.1,1873.6,3.50274188]
[1772284486459,0.97233584,1874.1,1873.7,2.16846631]
[1772284486772,2.30631258,1874.1,1873.7,2.16846631]
[1772284487777,0.97233584,1874.1,1873.7,2.16846631]
[1772284488072,0.97233584,1874.1,1873.7,1.33421628]
[1772284488279,0.97233584,1874.1,1873.8,2.16846631]
[1772284489749,0.002,1874.0,1873.8,2.16846631]
[1772284490955,0.002,1874.0,1873.8,3.50263081]
[1772284491173,0.002,1874.0,1873.8,1.3341645]
[1772284491350,0.002,1874.0,1873.9,2.16846631]
[1772284491551,0.002,1874.0,1873.7,5.33701993]
[1772284491552,0.002,1874.0,1873.7,3.50268711]
[1772284491879,0.002,1874.0,1873.8,2.16846631]
[1772284492676,0.91433584,1874.1,1873.8,2.16846631]
[1772284493876,0.91433584,1874.1,1873.8,3.50264901]
[1772284494379,0.91433584,1874.1,1873.9,2.16846631]
[1772284495178,0.91433584,1874.1,1874.0,3.50251113]
[1772284495479,0.91433584,1874.1,1874.0,2.16846631]
[1772284496268,1.37840129,1874.2,1874.1,1.95455882]
[1772284498181,1.37840129,1874.2,1874.1,3.28853246]
[1772284498761,0.84062263,1874.4,1874.1,3.28853246]
[1772284499771,0.83223934,1874.5,1874.2,1.95455882]
[1772284500376,2.94423934,1874.6,1874.2,1.95455882]
[1772284501663,2.94423934,1874.6,1874.2,3.28840856]
[1772284503390,2.94423934,1874.6,1874.2,1.33384974]
[1772284503583,2.94423934,1874.6,1874.3,1.95455882]
[1772284504495,2.94423934,1874.6,1874.3,3.28838667]
[1772284504690,0.81815657,1874.8,1874.4,1.95455882]
[1772284504897,1.33336395,1875.0,1874.4,1.95455882]
[1772284504898,0.81815657,1875.0,1874.4,1.95455882]
[1772284505268,0.81815657,1874.9,1874.4,1.95455882]
[1772284506972,0.81815657,1874.9,1874.5,3.2882478]
[1772284507175,0.81815657,1874.9,1874.6,1.95455882]
[1772284507379,0.8124828,1875.1,1874.8,2.69495311]
[1772284507680,0.8124828,1875.1,1874.8,1.95455882]
[1772284508588,2.14574843,1875.1,1874.8,1.95455882]
[1772284508898,0.80679074,1875.0,1874.6,1.95455882]
[1772284509088,0.80679074,1875.0,1874.7,1.95455882]
[1772284509263,2.14003937,1875.2,1874.8,1.95455882]
[1772284509466,0.80679074,1875.2,1874.8,1.95455882]
[1772284509675,0.80679074,1875.2,1874.9,1.95455882]
[1772284509880,0.80679074,1875.2,1874.6,1.33355063]
[1772284509881,0.38554993,1875.5,1875.2,1.95455882]
[1772284510081,0.1507877,1876.4,1875.4,1.95455882]
[1772284510082,1.33240952,1876.3,1875.4,1.95455882]
[1772284510382,0.80395442,1876.2,1875.8,1.92841612]
[1772284510582,0.81364586,1876.0,1875.4,1.92841612]
[1772284510879,0.81364586,1875.9,1875.5,0.74039429]
[1772284511086,0.81364586,1876.1,1875.6,3.26132292]
[1772284511613,0.81364586,1876.1,1875.6,1.92841612]
[1772284513022,2.14049069,1876.0,1875.6,1.92841612]
[1772284513317,0.1507877,1876.4,1875.9,1.92841612]
[1772284513546,9.86554861,1877.4,1876.3,1.92841612]
[1772284513547,1.33188164,1877.1,1876.3,1.92841612]
[1772284513820,0.1507877,1876.8,1876.5,1.92841612]
[1772284514196,0.28669193,1876.9,1876.5,1.92841612]
[1772284514584,0.28669193,1876.9,1876.6,1.92841612]
[1772284515320,2.54647963,1876.9,1876.6,1.92841612]
[1772284515885,1.33182296,1877.2,1876.7,1.92841612]
[1772284516394,5.32692801,1877.3,1876.7,1.92841612]
[1772284516395,5.3265764,1877.4,1876.7,1.92841612]
[1772284516611,2.48763383,1877.4,1876.7,1.92841612]
[1772284517196,0.43127077,1877.4,1876.7,1.92841612]
[1772284517522,2.05636306,1877.2,1876.7,1.92841612]
[1772284517826,2.05636306,1877.2,1876.2,1.92841612]
[1772284517827,2.05636306,1876.9,1876.2,1.92841612]
[1772284519018,3.69397815,1877.0,1876.2,1.92841612]
[1772284519019,2.48763383,1876.8,1876.2,1.92841612]
[1772284519225,2.05636306,1876.7,1876.0,7.2130248]
[1772284519423,3.38855958,1876.6,1876.0,7.2130248]
[1772284519719,3.81983035,1876.6,1876.1,1.92841612]
[1772284519907,2.05636306,1876.5,1876.0,5.28460868]
[1772284520218,1.76346729,1876.6,1876.1,1.92841612]
[1772284520219,0.43127077,1876.6,1876.1,1.92841612]
[1772284520530,0.43127077,1876.5,1876.1,1.92841612]
[1772284520703,0.43127077,1876.6,1876.1,1.92841612]
[1772284521095,2.48763383,1876.5,1876.0,5.25794945]
[1772284521297,2.05636306,1876.5,1876.0,5.25794945]
[1772284521523,1.33233852,1876.4,1876.0,5.25794945]
[1772284521720,1.76360929,1876.4,1876.0,5.25794945]
[1772284522094,1.76360929,1876.4,1876.0,7.18636557]
[1772284523296,0.43127077,1876.4,1876.0,7.18636557]
[1772284524298,1.76361671,1876.4,1876.0,7.18636557]
[1772284525502,3.81997977,1876.4,1876.0,7.18636557]
[1772284525699,2.48763383,1876.3,1876.0,5.25794945]
[1772284526125,2.05636306,1876.3,1875.6,1.92841612]
[1772284526900,0.96774584,1876.1,1875.6,1.92841612]
[1772284527628,0.96717002,1875.9,1875.3,1.92841612]
[1772284530121,1.33276468,1875.8,1875.3,1.92841612]
[1772284530332,2.29867336,1875.8,1875.3,1.92841612]
[1772284530829,2.29867336,1875.8,1875.4,1.92841612]
[1772284531148,1.33274257,1875.9,1875.4,1.92941612]
[1772284531522,2.29550335,1875.9,1875.4,1.92941612]
[1772284531731,1.33255156,1876.1,1875.4,1.92941612]
[1772284532053,2.29531234,1876.1,1875.5,3.26139399]
[1772284532236,2.29531234,1876.1,1875.6,1.92841612]
[1772284532739,2.29531234,1876.1,1875.4,0.001]
[1772284532740,0.96026805,1875.9,1875.4,0.001]
[1772284534715,1.33276468,1875.8,1875.4,0.001]
[1772284534921,0.95524941,1875.7,1875.4,0.001]
[1772284535864,0.95274043,1876.1,1875.4,1.92941612]
[1772284536149,0.95274043,1876.0,1875.4,1.92941612]
[1772284536921,1.33269364,1875.9,1875.4,1.92941612]
[1772284538921,1.33269364,1875.9,1875.5,1.92841612]
[1772284539697,5.49587611,1876.2,1875.5,1.92841612]
[1772284541150,2.107,1876.2,1875.6,2.19468313]
[1772284541350,3.46319091,1876.4,1875.7,2.19468313]
[1772284543342,1.33237832,1876.4,1875.9,2.21776838]
[1772284543758,4.26278954,1876.5,1875.9,2.21776838]
[1772284543958,4.63828186,1876.5,1875.9,2.21776838]
[1772284545071,2.53024026,1876.5,1875.9,2.21776838]
[1772284545449,2.53024026,1876.5,1876.1,2.21776838]
[1772284545649,1.19796337,1876.5,1876.1,2.21776838]
[1772284546067,2.53023473,1876.5,1876.1,2.21776838]
[1772284546279,2.18883201,1876.4,1875.9,2.21776838]
[1772284547744,1.33240952,1876.3,1875.9,2.21776838]
[1772284548877,3.52122443,1876.4,1876.0,2.21776838]
[1772284549053,1.33239242,1876.4,1876.0,2.21776838]
[1772284549743,2.18883201,1876.1,1875.7,0.001]
[1772284551797,1.19796337,1876.5,1876.0,2.21776838]
[1772284552086,2.18883201,1876.4,1875.9,1.33269364]
[1772284552449,2.18883201,1876.4,1875.9,3.55046202]
[1772284554256,4.71906427,1876.5,1876.0,2.21776838]
[1772284555653,2.47023226,1876.5,1876.0,2.21776838]
[1772284555856,4.65906427,1876.5,1876.0,2.21776838]
[1772284558076,4.65906427,1876.5,1876.0,3.55038713]
[1772284558515,3.32679538,1876.5,1876.1,2.21776838]
[1772284558803,4.65906871,1876.5,1876.1,2.21776838]
[1772284558968,2.18883201,1876.4,1875.9,1.33265213]
[1772284559163,2.18883201,1876.4,1876.0,2.21776838]
[1772284559600,2.18883201,1876.4,1875.7,1.33380449]
[1772284559770,2.18883201,1876.4,1875.8,2.21776838]
[1772284561610,2.18883201,1876.2,1875.8,2.21776838]
[1772284562393,1.33238981,1876.4,1875.9,2.21776838]
[1772284562577,1.13796337,1876.5,1876.1,2.21776838]
[1772284562893,1.33206959,1876.8,1876.2,2.21776838]
[1772284563082,3.5208514,1876.9,1876.2,2.21776838]
[1772284563292,3.52081578,1876.9,1876.2,2.21776838]
[1772284563495,2.18883201,1876.9,1876.3,2.21776838]
[1772284563801,3.52082024,1876.9,1876.5,2.21776838]
[1772284563975,4.58080476,1877.0,1876.5,2.21776838]
[1772284564170,4.58076963,1877.0,1876.5,2.21776838]
[1772284564796,4.58076963,1877.0,1875.6,13.0119563]
[1772284564797,2.18883201,1876.9,1876.0,2.21776838]
[1772284565685,3.52088657,1876.8,1876.2,2.21776838]
[1772284566194,2.18883201,1876.7,1876.2,2.21776838]
[1772284566399,2.18883201,1876.7,1876.0,3.55033296]
[1772284567007,2.18883201,1876.7,1876.1,2.21776838]
[1772284568303,1.33219652,1876.6,1876.1,3.55029074]
[1772284568485,3.52102853,1876.6,1876.1,3.55029074]
[1772284568687,3.52102853,1876.6,1876.1,2.21776838]
[1772284568895,3.52102853,1876.6,1876.1,3.55031729]
[1772284569709,1.33219652,1876.6,1876.2,2.21776838]
[1772284569894,2.18883201,1876.5,1876.0,2.21776838]
[1772284570601,2.24569318,1876.4,1876.0,2.21776838]
[1772284571398,2.24569318,1876.4,1876.0,3.55038908]
[1772284572105,2.24569318,1876.8,1876.1,2.22421765]
[1772284573101,4.58083838,1877.0,1876.3,2.22421765]
[1772284573102,6.82651355,1877.0,1876.3,2.22421765]
[1772284575333,6.82651355,1877.0,1876.5,2.22421765]
[1772284576930,4.71251355,1877.0,1876.5,2.22421765]
[1772284577426,4.71251355,1877.0,1876.5,3.55647741]
[1772284577603,4.71246205,1877.0,1876.5,3.55647741]
[1772284577993,4.71246205,1877.0,1876.5,2.22421765]
[1772284578396,2.24569318,1876.9,1876.4,1.33228117]
[1772284578600,2.46676887,1877.0,1876.5,2.22421765]
[1772284578898,2.46677649,1877.0,1876.5,2.22421765]
[1772284579300,4.71246967,1877.0,1876.5,2.22421765]
[1772284579530,4.71246967,1877.0,1876.6,1.33219652]
[1772284579531,3.38054798,1877.0,1876.6,1.33219652]
[1772284579749,4.71246085,1877.0,1876.6,2.22421765]
[1772284580308,1.1348548,1877.0,1876.6,2.22421765]
[1772284581219,4.71246643,1877.0,1876.6,2.22421765]
[1772284581425,3.38054798,1877.0,1876.6,2.22421765]
[1772284582017,4.71246694,1877.0,1876.6,2.22421765]
[1772284582259,3.38054798,1877.0,1876.6,3.55640679]
[1772284582552,3.38054798,1877.0,1876.6,3.55641314]
[1772284583058,1.1348548,1877.0,1876.7,2.22421765]
[1772284584748,2.24569318,1877.3,1876.9,2.22421765]
[1772284584954,8.18538955,1878.0,1876.9,2.22421765]
[1772284584955,2.24569318,1877.8,1876.9,2.22421765]
[1772284585152,2.24569318,1877.7,1876.9,2.22421765]
[1772284585522,2.24569318,1877.7,1876.7,5.3282461]
[1772284585523,2.24569318,1877.6,1876.7,2.22421765]
[1772284586234,2.24569318,1877.6,1876.5,2.22421765]
[1772284586629,2.24569318,1877.6,1876.5,3.55646571]
[1772284586630,2.24569318,1877.4,1876.5,3.55646571]
[1772284586949,2.24569318,1877.2,1876.5,3.55646571]
[1772284587448,2.24569318,1877.2,1876.6,2.22421765]
[1772284588246,2.24569318,1877.2,1876.6,2.22521765]
[1772284590056,3.44970053,1877.3,1876.8,2.22421765]
[1772284590262,2.118,1877.3,1876.8,2.22421765]
[1772284590652,1.33159225,1877.5,1876.8,2.22421765]
[1772284590957,3.57728543,1877.5,1876.8,2.22421765]
[1772284591162,2.24569318,1877.4,1876.8,2.22421765]
[1772284592333,3.57739296,1877.3,1876.8,2.22421765]
[1772284592856,2.24569318,1877.2,1876.8,3.55626779]
[1772284593763,2.24569318,1877.4,1876.8,3.55626779]
[1772284593937,1.33159879,1877.5,1876.9,2.22421765]
[1772284594268,3.57729197,1877.5,1876.9,2.22421765]
[1772284594558,3.57729197,1877.5,1877.0,2.22421765]
[1772284595237,2.24569318,1877.5,1877.0,2.22421765]
[1772284595634,4.65416245,1877.7,1877.0,2.22421765]
[1772284595855,4.65411242,1877.7,1877.0,2.22421765]
[1772284597068,4.65411242,1877.7,1877.2,2.22421765]
[1772284598059,2.40841924,1877.7,1877.2,2.22421765]
[1772284598262,1.33139616,1877.8,1877.2,2.22421765]
[1772284598436,5.17388193,1879.6,1877.5,2.22421765]
[1772284598636,1.32978723,1880.0,1876.6,0.001]
[1772284598637,1.42035598,1877.6,1876.6,0.001]
[1772284598864,2.18569318,1877.4,1876.3,4.16036905]
[1772284599033,2.148,1877.3,1876.6,2.22421765]
[1772284599234,1.76203968,1877.5,1876.3,4.16036905]
[1772284599235,2.24569318,1877.2,1876.3,2.3855867]
[1772284599433,1.63211337,1877.4,1876.3,2.3855867]
[1772284599434,2.24569318,1877.0,1876.3,2.3855867]
[1772284599660,5.45651539,1877.5,1876.4,2.22421765]
[1772284599661,2.54616818,1877.3,1876.4,2.22421765]
[1772284599869,6.04480671,1877.4,1876.4,2.22421765]
[1772284600047,2.24569318,1877.3,1876.4,2.22421765]
[1772284600370,2.24569318,1877.1,1876.3,3.71798139]
[1772284600664,2.24569318,1877.1,1876.4,2.52794329]
[1772284601035,6.74687137,1877.6,1876.4,2.52794329]
[1772284601036,2.495262,1877.3,1876.6,2.52794329]
[1772284601744,0.63254133,1877.2,1876.6,2.52794329]
[1772284602748,0.93301633,1877.2,1876.6,2.52794329]
[1772284602954,0.63254133,1877.2,1876.6,2.52794329]
[1772284603287,0.63254133,1877.2,1876.8,2.40996067]
[1772284603761,2.495262,1877.6,1876.8,2.40996067]
[1772284603964,5.32381366,1878.4,1877.0,2.40996067]
[1772284603965,4.51389277,1877.9,1877.0,2.40996067]
[1772284604166,0.24028487,1877.8,1877.2,2.40996067]
[1772284604664,2.35089277,1877.9,1877.2,2.40996067]
[1772284604871,0.24028487,1877.8,1877.2,2.40996067]
[1772284605077,2.164,1878.1,1877.2,2.40996067]
[1772284605078,2.35089277,1878.1,1877.2,2.40996067]
[1772284605275,2.35089277,1878.1,1877.3,1.33169978]
[1772284605459,2.35089277,1878.1,1877.3,3.74166045]
[1772284605660,2.35089277,1878.1,1877.1,5.32712089]
[1772284605661,2.35089277,1878.0,1877.1,1.33179026]
[1772284606581,2.35089277,1876.8,1875.6,0.001]
[1772284606788,1.92335355,1876.4,1875.6,0.001]
[1772284606993,3.548792,1876.3,1875.6,12.86220687]
[1772284607153,3.68332255,1876.3,1875.7,1.33283574]
[1772284607483,3.68332255,1876.3,1875.6,14.19510826]
[1772284607677,3.68332255,1876.3,1875.6,12.86220687]
[1772284607856,2.35089277,1876.2,1875.6,12.86220687]
[1772284608477,2.35089277,1876.2,1875.4,0.001]
[1772284608779,6.50631171,1876.3,1875.4,12.86320687]
[1772284608780,2.35089277,1876.0,1875.4,12.86320687]
[1772284609470,2.35089277,1875.9,1875.4,12.86320687]
[1772284609950,2.35089277,1875.9,1875.4,14.19625085]
[1772284610372,2.35089277,1875.9,1875.4,12.86320687]
[1772284611376,1.33276468,1875.8,1875.4,12.86320687]
[1772284611761,7.68178919,1875.9,1875.4,12.86320687]
[1772284611762,3.68363352,1875.9,1875.4,12.86320687]
[1772284612290,3.68363352,1875.9,1875.4,0.001]
[1772284612588,2.35089277,1875.8,1875.0,1.33329704]
[1772284612792,2.35089277,1875.8,1875.1,12.86220687]
[1772284613362,2.35089277,1875.6,1875.1,12.86220687]
[1772284613558,2.35089277,1875.6,1874.5,5.40029058]
[1772284613559,2.35089277,1875.4,1874.4,5.33484973]
[1772284613886,2.35089277,1875.3,1874.5,12.86220687]
[1772284614063,4.51389277,1875.3,1874.5,12.86220687]
[1772284614259,6.50671767,1875.7,1874.3,0.001]
[1772284614260,2.35089277,1874.8,1874.3,0.001]
[1772284614461,4.08489277,1874.8,1874.3,8.86320687]
[1772284614691,2.35089277,1874.7,1874.3,8.86320687]
[1772284615658,3.68444356,1874.7,1874.3,8.86320687]
[1772284616269,2.35089277,1874.7,1874.3,8.86320687]
[1772284617468,2.2647654,1874.7,1874.3,8.86320687]
[1772284617779,2.35089277,1875.0,1874.3,10.19702844]
[1772284618794,2.35089277,1875.0,1874.3,8.86320687]
[1772284619296,2.35089277,1875.0,1874.3,6.02493209]
[1772284619680,2.35089277,1874.8,1874.3,6.02493209]
[1772284619879,2.35089277,1874.7,1874.3,6.02493209]
[1772284620080,2.35089277,1874.7,1874.3,5.02847719]
[1772284621482,2.35089277,1874.7,1873.8,0.001]
[1772284621682,1.33383129,1874.3,1873.9,4.42149243]
[1772284621975,3.68472406,1874.3,1873.9,4.42149243]
[1772284622173,2.35089277,1874.2,1873.8,0.001]
[1772284622393,2.35089277,1874.2,1873.8,4.42249243]
[1772284623374,3.68458696,1874.5,1873.8,5.75667801]
[1772284623574,5.84558696,1874.5,1873.8,5.75667801]
[1772284623995,2.35089277,1874.4,1873.8,5.75667801]
[1772284624377,1.83678081,1873.8,1873.0,0.001]
[1772284624584,1.83678081,1873.8,1872.8,0.001]
[1772284624585,5.17388193,1873.2,1872.8,0.001]
[1772284624786,2.95837118,1873.1,1872.6,0.001]
[1772284625072,5.17388193,1873.2,1872.6,0.001]
[1772284625073,0.79437118,1873.0,1872.6,0.001]
[1772284625286,2.95837118,1873.0,1872.6,0.001]
[1772284625474,4.79742367,1873.0,1872.6,0.001]
[1772284625692,6.13225068,1873.0,1872.6,0.001]
[1772284626502,2.32031092,1872.9,1872.6,0.001]
[1772284626795,2.165,1872.8,1872.6,0.001]
[1772284626993,2.32031092,1872.9,1872.6,0.001]
[1772284627172,2.12915423,1873.0,1872.6,0.001]
[1772284627901,2.12915423,1873.0,1872.5,0.001]
[1772284628069,0.79437118,1873.0,1872.7,0.001]
[1772284629072,2.12912949,1873.0,1872.7,0.001]
[1772284629376,0.75983118,1872.9,1872.7,0.001]
[1772284629777,0.75983118,1872.9,1872.5,2.41096067]
[1772284629778,3.71040406,1872.8,1872.1,0.001]
[1772284629978,3.71040406,1872.6,1872.1,0.001]
[1772284630299,3.71040406,1872.6,1871.9,0.001]
[1772284630300,2.32341065,1872.6,1871.9,0.001]
[1772284630498,3.71040406,1872.3,1871.9,0.001]
[1772284630675,0.63531118,1872.2,1871.9,0.001]
[1772284632009,1.33539875,1872.1,1871.9,0.001]
[1772284632185,0.63531118,1872.0,1871.9,0.001]
[1772284632587,0.35118671,1872.1,1871.9,3.24653308]
[1772284633292,0.35118671,1872.1,1871.9,0.001]
[1772284634581,6.39224541,1872.7,1871.9,3.24653308]